Cogmind - Beta 14 @@@ ROGUE MODE // 2024.12.07 @ 19:51:01 Player: SH-pl7 Result: Destroyed by D-53 Grenadier with Mini Grenade Launcher Performance ------------- Evolutions (0) 0 Regions Visited (2) 400 Robots Destroyed (21) 105 Value Destroyed (363) 363 Prototype IDs (2) 40 Alien Tech Used (0) 0 Bonus (0) 0 TOTAL SCORE: 908 Bonus ------- None Cogmind --------- Core Integrity 0/250 Matter 230/300 Energy 71/100 System Corruption 0% Temperature Cool (0) Movement Walking (120) Location -10/Mines Parts ------- > --- POWER (1) -------- (None) > --- PROPULSION (2) --- Aluminum Leg Aluminum Leg > --- UTILITY (2) ------ Large Storage Unit > --- WEAPON (2) ------- (None) > --- INVENTORY (15) --- Light Ion Engine Improved Heat Sink Structural Scanner Visual Processing Unit Signal Interpreter Seismic Detector Hacking Suite EM Pulse Gun Small Laser Datajack Peak State ------------ > --- POWER ------------ Ion Engine > --- PROPULSION ------- Light Treads Light Treads > --- UTILITY ---------- Large Storage Unit Sensor Array > --- WEAPON ----------- Small Laser Assault Rifle > --- INVENTORY -------- Light Ion Engine Aluminum Leg Aluminum Leg Wheel Compact Wheel Improved Heat Sink Visual Processing Unit Improved Terrain Scanner Seismic Detector Hacking Suite EM Pulse Gun Grenade Launcher Datajack [Rating: 9] Favorites ----------- Power Ion Engine Engine Ion Engine Propulsion Light Treads Treads Light Treads Leg Aluminum Leg Wheel Compact Wheel Utility Large Storage Unit Device Sensor Array Storage Large Storage Unit Protection Light Armor Plating Weapon Assault Rifle Energy Gun Small Laser Ballistic Gun Assault Rifle Launcher Grenade Launcher Build | -11 -10 -10 ------- Run | Yrd Mat Min Slots Evolved . | . . . Power . | . . . Propulsion . | . . . Utility . | . . . Weapon . | . . . Parts Attached 25 | 7 9 9 Power 2 | 1 1 . Engine 2 | 1 1 . Core . | . . . Reactor . | . . . Propulsion 5 | 2 . 3 Treads 2 | 2 . . Leg 2 | . . 2 Wheel 1 | . . 1 Hover . | . . . Flight . | . . . Utility 8 | 1 5 2 Device 4 | . 3 1 Storage 3 | 1 2 . Processor . | . . . Hackware . | . . . Protection 1 | . . 1 Artifact . | . . . Weapon 10 | 3 3 4 Energy Gun 5 | 2 2 1 Energy Cannon . | . . . Ballistic Gun 1 | 1 . . Ballistic Cannon . | . . . Launcher 4 | . 1 3 Special Weapon . | . . . Impact Weapon . | . . . Slashing Weapon . | . . . Piercing Weapon . | . . . Special Melee Weapon . | . . . Unidentified Prototypes . | . . . Parts Lost 9 | . 1 8 Power 2 | . 1 1 Propulsion 3 | . . 3 Utility 1 | . . 1 Weapon 3 | . . 3 Highest Loss Streak 7 | . 1 7 To Critical Strikes . | . . . Average Slot Usage (%) 98 | . 98 96 Engine 13 | . 13 13 Treads 27 | . 28 25 Device 10 | . 10 12 Storage 16 | . 16 14 Energy Gun 14 | . 13 19 Ballistic Gun 11 | . 14 . Launcher 1 | . . 6 Peak Build Rating 9 | 7 9 8 Average Rating 7 | 3 8 7 On Entrance 5 | . 7 8 Naked Turns . | . . . Heaviest Build 35 | 13 35 34 Greatest Support 40 | 40 40 40 Greatest Overweight (x) 2 | . . 2 Average Overweight (x) . | . . . Largest Inventory Capacity 15 | 8 15 15 Average Capacity 14 | 7 14 15 Most Carried 15 | 8 15 14 Average Carried 11 | 4 12 12 Final Capacity 15 | 8 15 15 Final Carried 14 | 8 14 10 Class Distribution -------------------- 100% | Mutant Dominant Class ---------------- Mutant | -10/Materials Mutant | -10/Mines Resources | -11 -10 -10 ----------- Run | Yrd Mat Min Matter Collected 487 | 257 191 39 Remotely . | . . . Salvage Created 495 | 21 462 12 Parts 47 | 5 38 4 Haulers Intercepted . | . . . Recyclers Shooed . | . . . Parts Field Recycled . | . . . Retrieved Matter . | . . . Parts Self-Destructed . | . . . Prevented . | . . . Kills | -11 -10 -10 ------- Run | Yrd Mat Min Combat Hostiles Destroyed 14 | . 11 3 Guns 12 | . 11 1 AOE 2 | . . 2 Classes Destroyed 7 | 1 6 . Worker 1 | . 1 . Builder 1 | . 1 . Tunneler 1 | 1 . . Operator 1 | . 1 . Watcher 3 | . 3 . Swarmer 9 | . 6 3 Grunt 5 | . 5 . Best Kill Streak 4 | 1 4 3 Combat Bots Only 4 | . 4 3 Max Kills in Single Turn 2 | 1 2 2 Gunslinging . | . . . Exploded 2 | . . 2 Melee . | . . . Uniques/NPCs Destroyed . | . . . Combat | -11 -10 -10 -------- Run | Yrd Mat Min Hostile Shots Fired 86 | . 47 39 Missed 24 | . 13 11 Damage Taken 1158 | . 344 814 Core 274 | . 29 245 Absorbed by Shields . | . . . Core Remaining (%) 100 | 100 . . Volleys Fired 46 | 1 40 5 Largest 2 | 2 2 2 Hottest 70 | 60 60 70 Shots Fired 92 | 2 80 10 Gun 90 | 2 80 8 Cannon . | . . . Launcher 2 | . . 2 Special . | . . . Kinetic 44 | 1 40 3 Thermal 29 | 1 23 5 Explosive 2 | . . 2 Electromagnetic 17 | . 17 . Robot Hit Streak 8 | 2 8 3 Robot Miss Streak 5 | . 5 4 Penetration Max . | . . . Secondary Targets . | . . . Shots Hit Robots 50 | 2 45 3 Core Hits 31 | 1 26 4 Critical Kills . | . . . Critical Parts Destroyed . | . . . Critical Strikes . | . . . Melee Attacks . | . . . Impact . | . . . Slashing . | . . . Piercing . | . . . Sneak Attacks . | . . . Combat Hostiles . | . . . Follow-up Attacks . | . . . Damage Inflicted 733 | 23 598 112 Guns 665 | 23 598 44 Cannons . | . . . Explosions 68 | . . 68 Melee . | . . . Ramming . | . . . Kinetic 351 | 12 327 12 Thermal 187 | 11 144 32 Explosive 68 | . . 68 Electromagnetic 127 | . 127 . Impact . | . . . Slashing . | . . . Piercing . | . . . Highest Corruption . | . . . Average Corruption . | . . . Corruption Purged . | . . . Corruption Blocked . | . . . Overload Shots . | . . . Overflow Damage . | . . . Projectiles . | . . . Explosions . | . . . Melee . | . . . Knockbacks . | . . . Impact . | . . . Kinetic . | . . . Secondary . | . . . Self-Inflicted Damage 10 | . . 10 Shots 1 | . . 1 Rammed . | . . . Targets Rammed . | . . . Kicked . | . . . Crushed . | . . . Highest Temperature 36 | . 36 18 Average Temperature 16 | . 17 10 Received Heat Transfer 123 | . 123 . Siege Activations . | . . . Robots Corrupted . | . . . Combat Hostiles . | . . . Parts Fried . | . . . Impact Corruptions . | . . . Robots Melted . | . . . Combat Hostiles . | . . . Parts Melted . | . . . Heat Transferred 425 | 25 325 75 Parts Sabotaged . | . . . Parts Stolen . | . . . Parts Stripped . | . . . Power Chain Reactions . | . . . Alert | -11 -10 -10 ------- Run | Yrd Mat Min Peak Influence 250 | 5 250 91 Initial 19 | . 3 19 Average 121 | . 145 83 Maximum Alert Level 1 | . 1 . Low Security (%) 91 | 100 88 100 Level 1 8 | . 11 . Level 2 . | . . . Level 3 . | . . . Level 4 . | . . . Level 5 . | . . . High Security . | . . . Max Security . | . . . Squads Dispatched 2 | . 2 . Investigation 1 | . 1 . Extermination . | . . . Reinforcement 1 | . 1 . Assault . | . . . Garrison . | . . . Intercept . | . . . Searches Triggered . | . . . Construction Impeded . | . . . Haulers Reinforced . | . . . Active Scanning Responses . | . . . Cargo Convoy Interrupts . | . . . Stealth | -11 -10 -10 --------- Run | Yrd Mat Min Distress Signals 1 | . 1 . Communications Jammed . | . . . Distress Signals . | . . . Times Spotted 27 | . 22 5 Peak Tracking Total 6 | . 6 3 Tactical Retreats 2 | . 2 . Traps | -11 -10 -10 ------- Run | Yrd Mat Min Traps Triggered 1 | . 1 . Indirectly . | . . . Trap Hack Attempts . | . . . Triggered . | . . . Disarmed . | . . . Reprogrammed . | . . . Reused . | . . . Traps Extracted . | . . . Installed . | . . . Triggered . | . . . Machines | -11 -10 -10 ---------- Run | Yrd Mat Min Machines Disabled . | . . . Max in Single Turn . | . . . Machines Repaired . | . . . Machines Dismantled . | . . . Machines Sabotaged . | . . . Overloaded Fab Kills . | . . . Hacking | -11 -10 -10 --------- Run | Yrd Mat Min Machines Accessed 2 | . 2 . Terminals 2 | . 2 . Fabricators . | . . . Repair Stations . | . . . Recycling Units . | . . . Scanalyzers . | . . . Garrison Access . | . . . Total Hacks 6 | . 6 . Successful 3 | . 3 . Failed 3 | . 3 . Catastrophic . | . . . Database Lockouts . | . . . Manual 3 | . 3 . Terminals 6 | . 6 . Fabricators . | . . . Repair Stations . | . . . Recycling Units . | . . . Scanalyzers . | . . . Garrison Access . | . . . Terminal Hacks 2 | . 2 . Prototype ID Bank 1 | . 1 . Unreport Threat 1 | . 1 . Fabricator Hacks . | . . . Repair Station Hacks . | . . . Recycling Unit Hacks . | . . . Scanalyzer . | . . . Garrison Access Hacks . | . . . Unauthorized Hacks 1 | . 1 . Terminals 1 | . 1 . Botnet 1 | . 1 . Fabricators . | . . . Repair Stations . | . . . Recycling Units . | . . . Scanalyzers . | . . . Garrison Access . | . . . Data Cores Recovered . | . . . Used . | . . . Hacking Detections 2 | . 2 . Full Trace Events . | . . . Feedback Events . | . . . Feedback Blocked . | . . . Robot Schematics Acquired . | . . . Robots Built . | . . . Authchips . | . . . Time . | . . . Total Robot Build Rating . | . . . Part Schematics Acquired . | . . . Parts Built . | . . . Authchips . | . . . Time . | . . . Total Part Build Rating . | . . . Parts Repaired . | . . . Time . | . . . Parts Recycled . | . . . Recycled Matter . | . . . Retrieved Matter . | . . . Retrieved Components . | . . . Parts Scanalyzed . | . . . Part Schematics Acquired . | . . . Parts Damaged . | . . . Bothacking | -11 -10 -10 ------------ Run | Yrd Mat Min Used RIF Installer . | . . . Robots Hacked . | . . . Non-combat . | . . . Combat . | . . . Robot Hacks Applied . | . . . Relay Couplers Released . | . . . Fabnet Peak Effective % . | . . . Robots Rewired . | . . . Allies Hacked . | . . . Hacks Repelled . | . . . Allies | -11 -10 -10 -------- Run | Yrd Mat Min Total Allies . | . . . Largest Group . | . . . Highest-Rated Group . | . . . Highest-Rated Ally . | . . . Total Orders . | . . . Ally Attacks . | . . . Total Damage . | . . . Kills . | . . . Allies Corrupted . | . . . Allies Melted . | . . . Intel | -11 -10 -10 ------- Run | Yrd Mat Min Robot Analysis Total . | . . . Derelict Logs Recovered . | . . . Drone Launches . | . . . Drone Recoveries . | . . . Exploration | -11 -10 -10 ------------- Run | Yrd Mat Min Turns Passed 1070 | 97 787 186 Spaces Moved 547 | 52 394 101 Core 7 | 7 . . Treads 533 | 45 394 94 Legs 1 | . . 1 Wheels 6 | . . 6 Hover . | . . . Flight . | . . . Fastest Speed 50 | 50 160 115 Average Speed 158 | 145 160 157 Slowest Speed 240 | 160 160 240 Overloaded Moves . | . . . Propulsion Burnouts . | . . . Robots Hopped . | . . . Cave-ins Triggered . | . . . Exploration Rate (%) 37 | 4 81 26 Regions Visited 2 Branch Regions 1 Pre-discovered Areas . | . . . Known Exits Taken . | . . . Unknown Exits Taken 2 | 1 1 . Scrap Searched 1 | . . 1 Spaces Dug . | . . . Terrain Destroyed 16 | . . 16 Melee . | . . . Projectile . | . . . AOE 16 | . . 16 Terrain Rammed . | . . . Walls Destroyed . | . . . Machines Disabled . | . . . Actions | -11 -10 -10 --------- Run | Yrd Mat Min Total 654 | 69 470 115 Wait 13 | . 13 . Move 545 | 51 393 101 Hop . | . . . Pick Up 20 | 10 10 . Fast Attach 6 | 4 2 . Attach 8 | 2 2 4 Detach . | . . . Swap 11 | 1 5 5 Drop 5 | . 5 . Fire 46 | 1 40 5 Melee . | . . . Ram . | . . . Kick . | . . . Crush . | . . . Escape Stasis . | . . . Rewire . | . . . Trap . | . . . Miscellaneous . | . . . Route ------- -11/Scrapyard -10/Materials (discovered 4 exits: [*Mat x2] / [*Min x2]) -10/Mines History --------- Turn | Location | Event 2 | -11/Scrapyard | Discovered new exit (range 16) 98 | -11/Scrapyard | Entered Materials 320 | -10/Materials | Build established: Mutant 598 | -10/Materials | Discovered new exit (range 16) 704 | -10/Materials | Discovered new exit (range 12) 830 | -10/Materials | Discovered new exit (range 12) 880 | -10/Materials | Discovered new exit (range 4) 885 | -10/Materials | Entered Mines 1022 | -10/Mines | Assembled infested the area 1039 | -10/Mines | Found a hidden stash of uninstalled traps 1051 | -10/Mines | Core integrity fell below 50% 1054 | -10/Mines | Core integrity fell below 20% 1071 | -10/Mines | Destroyed by D-53 Grenadier with Mini Grenade Launcher Last Messages --------------- 01044_ D-53 Grenadier unfolds itself. 01046_ T-07 Excavator destroyed. 01053_ The unstable cave ceiling collapses. 01054_ HV Slug penetrates as-03179. 01054_ as-03179 suffers critical hit (Destroy). 01054_ as-03179 destroyed. 01054_ U-05 Engineer builds a Wall. 01057_ The unstable cave ceiling collapses. 01057_ Lgt. Treads destroyed. 01058_ U-05 Engineer lays Concrete. 01059_ U-05 Engineer builds a Wall. 01059_ U-05 Engineer destroyed. 01062_ Grenade Launcher destroyed. 01062_ Ion Engine destroyed. 01062_ Lgt. Armor Plating destroyed. 01065_ The unstable cave ceiling collapses. 01066_ Grenade Launcher destroyed. 01067_ Lgt. Treads destroyed. 01067_ Com. Wheel destroyed. 01071_ The unstable cave ceiling collapses. Map ----- +----------------------------------------------------+ | | | | | ??????????????????????????????????????????????? | | ??????????????????????????????????????????????? | | ????????????????????????????????????#####?????? | | ???????????????????????????????????## ###???? | | ??????????????????????????????????## ##??? | | ????????????????????????????####### #??? | | ????????????????????????????# #??? | | ????????????????????????????# """ ##??? | | ????????????????????????????# """ ###???? | | ???????????????????????????## """ ##?????? | | ???????????????????????????# #??????? | | ???????????????????????????# ##??????? | | ???????????????????????????## ##???????? | | ????????????????????????????# ####????????? | | ????????????????????????##### ##???????????? | | ????????????????????????# ##???????????? | | ????????????????????????# #### ##??????????? | | ????????????????????????# #??### #??????????? | | ???#????????????????????# #????## ##??????????? | | ???? %?????????????????#*###???# #???????????? | | ?????? ############?#### ##??# #???????????? | | ???????? ### r ##?# #???????????? | | ?????????? ## #?# #???????????? | | ???????????# # # @ #?# #???????????? | | ??????????## # ### #???????????? | | ??????????# # # # #### #####???????? | | ??????????# #?## #####???????? | | ??????# ## #?## ##???????? | | ?????## ! d #?## ## #######??? | | ?????# d #?## ## #######??? | | ????# # ## ##??? | | ???# ## ############ ##??? | | #?$ #????####### ##??? | | " ## ## ##? #???????#### ##### | | ### "%"??##### #######?? ############ ##### | | ??# "???????## #?????###? ######### ## | | ?# ?????????# ?????## ## | | ??????????## #????## ######## ## | | # ????????????#### ????## ?? ####### ## | | ? ????????????????? ???????? #????## * * # | | ???????????????????? ??????????????### [ # | | ????????????????????? ??????????????## ## | | ????????????????????????????????????## ### | | ????????????????????????????????????#### ### | | ????????????????????????????????????##########? | | ??????????????????????????????????????########? | | ??????????????????????????????????????????????? | | ??????????????????????????????????????????????? | +----------------------------------------------------+ Best States ------------- Heat Dissipation 25 Energy Generation 10 Energy Capacity 250 Matter Stores 300 Matter Capacity 300 Sight Range 16 Robot Scan Range 14 Terrain Scan Density 10 Armor Coverage 150 Evasion (%) 40 Recoil Reduction 2 Item Schematics ----------------- None Robot Schematics ------------------ None Fabricated ------------ Nothing Alien Tech Used ----------------- None Achievements -------------- None Challenges ------------ None Game ------ Seed ChainSpikedPod Manual? 0 Play Time 00:16:26 Cumulative 114.1 hours Start 2024.12.07 @ 19:34:48 End 2024.12.07 @ 19:51:01 Sessions 1 Manual Loads 0 Difficulty Rogue Special Mode None Game No. 116 Rogue 116 Adventurer 0 Explorer 0 Win Type - Total 1 Types 1/0/0/0/0/0/0/0/0 Lore% 16 Gallery% 45 Achievement% 40 Wizard Run 0 Options --------- Layout 2 ASCII 0 Keyboard 0 Movement Mouse Keybinds 0 Fullscreen 2 Font 16/SmallcapsGlow Map View 55x47 Zoom Use 3% Tactical HUD 1 Map Filters NONE Filters NONE Steam 1 RUN: 7a79759b-067e-4dfa-98fc-2118151064d4